bitfinex/quotes_BTCUSD_20251201
["timestamp","ask_amount","ask_price","bid_price","bid_amount"]
[1764603064374,0.00011744,85015.0,85014.0,0.23525536]
[1764603064570,0.00011744,85015.0,85012.0,0.24702394]
[1764603064773,0.00011744,85015.0,84990.0,0.47064303]
[1764603064774,2.01176332,85010.0,85001.0,0.05331]
[1764603064976,0.01147135,85012.0,85006.0,0.01176387]
[1764603065182,0.06046,85012.0,85003.0,0.01176429]
[1764603065382,2.0,85011.0,85003.0,0.01176429]
[1764603065630,2.0,85014.0,85011.0,0.01176318]
[1764603065833,0.00011744,85015.0,85014.0,0.23525536]
[1764603066042,0.00011744,85015.0,85014.0,0.48220757]
[1764603067680,0.00011744,85015.0,85014.0,0.40036536]
[1764603067859,0.00011744,85015.0,85014.0,0.16511]
[1764603068061,0.00011744,85015.0,85014.0,0.30179139]
[1764603068258,0.00011744,85015.0,85014.0,0.30779139]
[1764603068641,0.00011744,85015.0,85014.0,0.40131139]
[1764603068870,0.00011744,85015.0,85014.0,0.50112846]
[1764603069550,0.00011744,85015.0,85014.0,0.49512846]
[1764603070169,0.00011744,85015.0,85014.0,0.40131139]
[1764603071090,0.00011744,85015.0,85014.0,0.30179139]
[1764603071293,0.00011744,85015.0,85014.0,0.06653603]
[1764603071494,0.00011744,85015.0,85014.0,0.40631139]
[1764603071739,0.00011744,85015.0,85014.0,0.30679139]
[1764603071941,0.00011744,85015.0,85014.0,0.39040481]
[1764603072119,0.00011744,85015.0,85014.0,0.48992481]
[1764603072344,0.00011744,85015.0,85014.0,0.56119127]
[1764603072550,0.04184182,85046.0,85014.0,0.56119127]
[1764603072551,0.0112,85046.0,85043.0,0.01175875]
[1764603072756,0.01175848,85045.0,85040.0,0.01175917]
[1764603072955,0.01131766,85046.0,85044.0,0.23517114]
[1764603073154,0.01131766,85046.0,85045.0,0.06559]
[1764603073499,0.01131766,85046.0,85045.0,0.16511]
[1764603074221,0.01131766,85046.0,85039.0,0.01175931]
[1764603074429,0.01131766,85046.0,85044.0,0.23517092]
[1764603074824,0.01131766,85046.0,85045.0,0.002]
[1764603075029,0.01131766,85046.0,85044.0,0.23517092]
[1764603075475,0.01131766,85046.0,85044.0,0.23517129]
[1764603075844,0.01131766,85046.0,85044.0,0.23517073]
[1764603076456,0.01131766,85046.0,85043.0,0.24693286]
[1764603076671,0.01131766,85046.0,85044.0,0.23517142]
[1764603077247,0.01131766,85046.0,85045.0,0.06559]
[1764603077649,0.01231766,85046.0,85045.0,0.06559]
[1764603077880,0.01131766,85046.0,85045.0,0.06559]
[1764603078105,0.01131766,85046.0,85044.0,0.23517142]
[1764603078287,0.01231766,85046.0,85045.0,0.06559]
[1764603078493,0.01131766,85046.0,85045.0,0.2603765]
[1764603078693,0.01131766,85046.0,85045.0,0.24889646]
[1764603078911,0.01231766,85046.0,85045.0,0.2603765]
[1764603080034,0.01131766,85046.0,85045.0,0.2603765]
[1764603080233,0.01131766,85046.0,85045.0,0.37560246]
[1764603080469,0.00153755,85075.0,85067.0,0.01175543]
[1764603080727,2.0,85074.0,85064.0,0.24687225]
[1764603080916,0.01175474,85072.0,85063.0,0.01175599]
[1764603081122,0.01175461,85073.0,85064.0,0.01175585]
[1764603081368,0.01147135,85072.0,85069.0,0.01175516]
[1764603081572,0.01175461,85073.0,85069.0,0.01175516]
[1764603081772,0.01147135,85074.0,85071.0,0.01175488]
[1764603082046,0.01175543,85067.0,85063.0,0.23511858]
[1764603082266,0.24686469,85067.0,85064.0,0.2468728]
[1764603082508,0.01147135,85070.0,85066.0,0.01175557]
[1764603082686,0.01147135,85070.0,85069.0,0.23510326]
[1764603082905,0.005,85074.0,85073.0,0.23509221]
[1764603083052,0.005,85074.0,85067.0,0.11127543]
[1764603083053,0.005,85074.0,85064.0,0.00752]
[1764603083260,0.00999999,85080.0,85073.0,0.23509221]
[1764603083442,0.00999999,85080.0,85074.0,0.04654516]
[1764603083646,0.01751999,85090.0,85074.0,0.12281162]
[1764603083864,0.00999999,85100.0,85074.0,0.12281162]
[1764603084270,0.00999999,85100.0,85074.0,0.13429166]
[1764603085040,0.01175101,85099.0,85074.0,0.13429166]
[1764603085254,0.01175184,85093.0,85074.0,0.0580252]
[1764603085473,0.0457,85085.0,85074.0,0.04654516]
[1764603085654,0.00999999,85080.0,85074.0,0.23508945]
[1764603086190,0.00999999,85080.0,85073.0,0.23509221]
[1764603086365,0.00999999,85080.0,85073.0,0.23509045]
[1764603086799,0.00999999,85080.0,85073.0,0.23508988]
[1764603086951,0.00999999,85080.0,85074.0,0.07405386]
[1764603087483,0.00752,85090.0,85074.0,0.07405386]
[1764603087484,0.00999999,85090.0,85074.0,0.15633468]
[1764603087709,0.00999999,85100.0,85074.0,0.15633468]
[1764603088103,0.00999999,85100.0,85074.0,0.16781472]
[1764603088310,0.00999999,85100.0,85074.0,0.17533472]
[1764603088525,0.01175115,85098.0,85074.0,0.15633468]
[1764603088691,0.01175115,85098.0,85074.0,0.16385468]
[1764603089051,0.00999999,85080.0,85073.0,0.23508988]
[1764603089169,0.00999999,85080.0,85071.0,0.01175488]
[1764603089421,0.00999999,85080.0,85073.0,0.23509079]
[1764603089777,0.00999999,85080.0,85073.0,0.2370922]
[1764603089958,0.00999999,85090.0,85073.0,0.2370922]
[1764603090435,0.0117524,85089.0,85073.0,0.2370922]
[1764603090650,0.00999999,85080.0,85073.0,0.23709123]
[1764603090843,0.00999999,85080.0,85072.0,0.01175474]
[1764603090844,0.23507731,85079.0,85072.0,0.01175474]
[1764603090969,0.02175363,85080.0,85072.0,0.01175474]
[1764603090970,0.00999999,85080.0,85072.0,0.01175474]
[1764603091168,0.00999999,85080.0,85073.0,0.23508993]
[1764603091542,0.00999999,85080.0,85073.0,0.31149633]
[1764603092065,0.00999999,85090.0,85074.0,0.08228082]
[1764603092585,0.24504791,85090.0,85073.0,0.31149633]
[1764603092814,0.00999999,85090.0,85074.0,0.09376086]
[1764603093020,1.01939297,85100.0,85088.0,0.01175253]
[1764603093356,0.2467783,85097.0,85086.0,0.01175281]
[1764603093560,0.00045618,85089.0,85088.0,0.23505077]
[1764603093766,0.00752,85099.0,85096.0,0.01175143]
[1764603094062,0.00752,85099.0,85092.0,0.01175198]
[1764603094260,0.01927101,85099.0,85094.0,0.0117517]
[1764603094471,0.01175115,85098.0,85093.0,0.01175184]
[1764603094704,0.01927101,85099.0,85091.0,0.01175212]
[1764603094957,0.01175129,85097.0,85085.0,0.01175295]
[1764603095148,0.0117517,85094.0,85086.0,0.01175281]
[1764603095298,0.10925,85084.0,85073.0,0.01175461]
[1764603095511,0.04705,85084.0,85078.0,0.01175391]
[1764603095700,0.04705,85084.0,85078.0,0.00039181]
[1764603095902,0.23507563,85079.0,85078.0,0.00039181]
[1764603096105,0.2468236,85081.0,85078.0,0.00039181]
[1764603096316,0.323,85082.0,85078.0,0.00039181]
[1764603096524,0.0622,85079.0,85078.0,0.00039181]
[1764603097128,0.05880309,85084.0,85078.0,0.00039181]
[1764603097327,0.23507287,85080.0,85079.0,0.02354788]
[1764603097538,0.00752,85085.0,85078.0,0.00039181]
[1764603097763,0.001,85084.0,85078.0,0.01214572]
[1764603097954,0.24257981,85085.0,85078.0,0.00039181]
[1764603098188,0.01175322,85083.0,85078.0,0.01214572]
[1764603098389,0.001,85084.0,85082.0,0.23506577]
[1764603098681,0.00999999,85100.0,85094.0,0.0117517]
[1764603098812,2.0,85099.0,85094.0,0.0117517]
[1764603099017,2.0,85099.0,85097.0,0.23502399]
[1764603099241,2.0,85099.0,85092.0,0.01175198]
[1764603099442,2.23502264,85099.0,85092.0,0.23503901]
[1764603099644,0.55801363,85102.0,85100.0,0.11014264]
[1764603099645,2.55801486,85101.0,85100.0,0.11014264]
[1764603099845,2.33052,85101.0,85100.0,0.11014264]
[1764603100683,0.33052,85101.0,85100.0,0.11014264]
[1764603100901,0.33052,85101.0,85100.0,0.10914264]
[1764603101106,0.0004,85110.0,85107.0,0.01174991]
[1764603101310,0.0004,85110.0,85108.0,0.23499392]
[1764603101478,0.0004,85110.0,85108.0,0.28451791]
[1764603101681,0.01174991,85107.0,85100.0,0.10914264]
[1764603101882,0.10925,85101.0,85100.0,0.10914264]
[1764603102063,0.43225,85101.0,85100.0,0.10914264]
[1764603102264,0.53028762,85101.0,85100.0,0.10914264]
[1764603102509,0.43236762,85101.0,85100.0,0.1200569]
[1764603102715,0.53028762,85101.0,85100.0,0.10914264]
[1764603103167,2.5548233,85101.0,85100.0,0.00914264]
[1764603103429,0.01175405,85077.0,85068.0,0.0117553]
[1764603103638,0.0239,85066.0,85063.0,0.02574]
[1764603103834,0.0239,85066.0,85055.0,0.01175709]
[1764603103835,0.01175571,85065.0,85055.0,0.01175709]
[1764603104055,0.0239,85066.0,85053.0,0.02574]
[1764603104056,0.01175599,85063.0,85053.0,0.02574]
[1764603104228,0.01175613,85062.0,85057.0,0.01175682]
[1764603104438,0.03565557,85066.0,85059.0,0.01175654]
[1764603104641,0.03565557,85066.0,85058.0,0.01175668]
[1764603104642,0.01175585,85064.0,85058.0,0.01175668]
[1764603104856,0.01175295,85085.0,85068.0,0.0117553]
[1764603104998,0.01175295,85085.0,85058.0,0.00039181]
[1764603104999,0.00752,85075.0,85074.0,0.23508764]
[1764603105209,0.05457,85081.0,85068.0,0.0117553]
[1764603105412,1.01939297,85078.0,85072.0,0.01175474]
[1764603105729,1.01939297,85078.0,85075.0,0.24683998]
[1764603105932,0.0663235,85081.0,85075.0,0.24683998]
[1764603106100,0.0663235,85081.0,85077.0,0.01175405]
[1764603106297,0.00752,85081.0,85071.0,0.01175488]
[1764603106502,0.01175391,85078.0,85073.0,0.01175461]
[1764603106747,0.05457,85081.0,85076.0,0.01175419]
[1764603106947,0.00752,85081.0,85078.0,0.01175391]
[1764603107186,0.00752,85081.0,85074.0,0.01175447]
[1764603107187,0.00752,85081.0,85073.0,0.01175461]
[1764603107473,0.0239,85086.0,85024.0,2.94031319]
[1764603107474,2.0,85096.0,85087.0,0.01175267]
[1764603107684,0.01175309,85084.0,85074.0,0.01175447]
[1764603107941,0.01999998,85080.0,85066.0,0.09992946]
[1764603108275,0.00999999,85080.0,85077.0,0.01175405]
[1764603108491,0.01999998,85080.0,85067.0,0.01175543]
[1764603108691,0.04705,85067.0,85054.0,0.01175723]
[1764603108900,0.323,85059.0,85057.0,0.24689053]
[1764603109132,0.323,85059.0,85054.0,0.00039181]
[1764603109313,0.323,85059.0,85056.0,0.01175696]
[1764603109462,0.323,85059.0,85057.0,0.23513498]
[1764603109660,0.323,85059.0,85056.0,0.24689575]
[1764603109864,0.00999999,85060.0,85058.0,0.23513367]
[1764603110085,0.00999999,85060.0,85057.0,0.01175682]
[1764603110246,0.01999998,85060.0,85054.0,0.23553651]
[1764603110449,0.01175682,85057.0,85054.0,0.00039181]
[1764603110647,0.62034196,85055.0,85054.0,0.00039181]
[1764603111111,0.323,85036.0,85026.0,0.24698309]
[1764603111431,0.00999999,85030.0,85027.0,0.02587446]
[1764603111654,0.01176069,85029.0,85021.0,0.0117618]
[1764603111827,0.01176069,85029.0,85017.0,0.24700806]
[1764603111828,0.24697617,85029.0,85020.0,0.01176193]
[1764603112028,0.24697617,85029.0,85018.0,0.01176221]
[1764603112029,0.01176083,85028.0,85018.0,0.01176221]
[1764603112241,0.3347611,85026.0,85019.0,0.06234133]
[1764603112449,0.04705,85018.0,85017.0,0.01176235]
[1764603112650,0.04705,85018.0,85006.0,0.01176387]
[1764603112851,0.04705,85018.0,85012.0,0.01176304]
[1764603112852,0.60782371,85016.0,85012.0,0.01176304]
[1764603113057,0.01999998,85010.0,85001.0,0.05331]
[1764603113208,0.0592,85007.0,85001.0,0.05331]
[1764603113412,0.3852,85002.0,85001.0,0.05331]
[1764603114083,0.323,85002.0,85001.0,0.05331]
[1764603114220,0.32339156,85002.0,85001.0,0.05331]
[1764603114626,0.00039156,85002.0,85001.0,0.05331]
[1764603114824,0.47540156,85002.0,85001.0,0.05631]
[1764603115092,2.47540156,85002.0,85001.0,0.05631]
[1764603115522,2.48687291,85002.0,85001.0,0.05631]
[1764603116067,2.48687291,85002.0,85001.0,0.05331]
[1764603116389,0.06064156,85002.0,85001.0,0.05331]
[1764603116614,0.71069014,85002.0,85001.0,0.05331]
[1764603117027,0.47540156,85002.0,85001.0,0.05331]
[1764603117541,0.47540156,85002.0,85001.0,0.0550065]
[1764603117756,0.32339156,85002.0,85001.0,0.0560065]
[1764603117999,0.32339156,85002.0,85001.0,0.0550065]
[1764603118170,0.47540156,85002.0,85001.0,0.0550065]
[1764603118388,0.47540156,85002.0,85001.0,0.0560065]
[1764603118578,0.71069014,85002.0,85001.0,0.0560065]
[1764603118737,0.72216149,85002.0,85001.0,0.0560065]
[1764603118941,0.47540156,85002.0,85001.0,0.0560065]
[1764603119176,0.71069014,85002.0,85001.0,0.0560065]
[1764603119366,2.71069014,85002.0,85001.0,0.0550065]
[1764603119576,0.323,85001.0,85000.0,30.621729]
[1764603119730,0.323,85001.0,85000.0,29.02730567]
[1764603119731,2.39699434,85001.0,85000.0,29.02730567]
[1764603120044,2.47977664,85001.0,85000.0,28.95660265]
[1764603120250,2.55699856,85001.0,85000.0,27.46543831]
[1764603120448,2.55699856,85001.0,85000.0,27.4300868]
[1764603120449,2.59275033,85001.0,85000.0,27.4300868]
[1764603120675,2.63043225,85001.0,85000.0,26.77779519]
[1764603120875,2.66939362,85001.0,85000.0,22.48417103]
[1764603121078,2.64892227,85001.0,85000.0,22.44881952]
[1764603121234,2.50601668,85001.0,85000.0,21.6169769]
[1764603121442,2.52648803,85001.0,85000.0,21.6169769]
[1764603121640,2.50220761,85001.0,85000.0,21.6169769]
[1764603122165,2.35099135,85001.0,85000.0,21.6169769]
[1764603122357,2.33952,85001.0,85000.0,21.0056514]
[1764603122562,2.33952,85001.0,85000.0,20.72048876]
[1764603122563,2.61792793,85001.0,85000.0,20.72048876]
[1764603122818,2.50826895,85001.0,85000.0,20.45717302]
[1764603123103,2.5267403,85001.0,85000.0,20.1905959]
[1764603123313,2.60628841,85001.0,85000.0,18.99416621]
[1764603123530,2.60628841,85001.0,85000.0,18.54776491]
[1764603123531,2.61902081,85001.0,85000.0,18.54776491]
[1764603123751,2.63949216,85001.0,85000.0,18.32444546]
[1764603123952,2.62699485,85001.0,85000.0,18.28907854]
[1764603124167,2.5242662,85001.0,85000.0,18.28907854]
[1764603124567,2.5152662,85001.0,85000.0,18.28907854]
[1764603124791,2.39699434,85001.0,85000.0,18.28907854]
[1764603124990,2.40451434,85001.0,85000.0,18.28907854]
[1764603125730,2.41151434,85001.0,85000.0,18.28907854]
[1764603125934,2.40451434,85001.0,85000.0,18.28907854]
[1764603126341,2.40751434,85001.0,85000.0,18.28907854]
[1764603128177,2.02199135,85001.0,85000.0,18.28907854]
[1764603129000,1.81284408,85001.0,85000.0,18.28907854]
[1764603129210,1.80984408,85001.0,85000.0,18.28907854]
[1764603129417,2.14431543,85001.0,85000.0,18.28907854]
[1764603129622,1.81284408,85001.0,85000.0,18.20307854]
[1764603129831,0.00752,85001.0,85000.0,18.20307854]
[1764603130033,2.13421731,85001.0,85000.0,18.20307854]
[1764603130168,2.53819743,85001.0,85000.0,18.20807854]
[1764603130554,2.5197403,85001.0,85000.0,18.20307854]
[1764603130741,2.5197403,85001.0,85000.0,18.20707854]
[1764603131189,2.34461578,85001.0,85000.0,18.20707854]
[1764603131731,2.34461578,85001.0,85000.0,17.66518292]
[1764603131939,2.34461578,85001.0,85000.0,17.66118292]
[1764603131940,2.45529422,85001.0,85000.0,17.66118292]
[1764603132275,2.45728948,85001.0,85000.0,17.66118292]
[1764603132510,2.45528948,85001.0,85000.0,17.12830568]
[1764603132661,2.45157664,85001.0,85000.0,17.12830568]
[1764603132825,2.36879434,85001.0,85000.0,17.12930568]
[1764603133040,2.45776128,85001.0,85000.0,16.56867471]
[1764603133237,2.45810498,85001.0,85000.0,16.30939572]
[1764603133446,2.48051606,85001.0,85000.0,16.27502484]
[1764603133652,2.48803606,85001.0,85000.0,16.27402484]
[1764603134084,2.46957633,85001.0,85000.0,15.73066496]
[1764603134309,2.46957633,85001.0,85000.0,15.30010023]
[1764603134516,2.52969962,85001.0,85000.0,14.01478407]
[1764603134774,2.52969962,85001.0,85000.0,13.8263145]
[1764603134988,2.47057633,85001.0,85000.0,13.8063145]
[1764603135221,2.50073825,85001.0,85000.0,9.1095145]
[1764603135427,2.49973825,85001.0,85000.0,9.0206145]
[1764603135625,2.50473825,85001.0,85000.0,9.0206145]
[1764603135875,2.46957633,85001.0,85000.0,9.0206145]
[1764603136268,2.47057633,85001.0,85000.0,9.0206145]
[1764603136489,2.37308939,85001.0,85000.0,9.0206145]
[1764603136669,2.38060939,85001.0,85000.0,9.0206145]
[1764603136837,2.38460939,85001.0,85000.0,8.9326145]
[1764603137044,2.3220864,85001.0,85000.0,8.9326145]
[1764603137509,2.38460939,85001.0,85000.0,8.9326145]
[1764603137713,1.9915664,85001.0,85000.0,8.9326145]
[1764603137862,2.0020464,85001.0,85000.0,8.9326145]
[1764603138111,1.97786784,85001.0,85000.0,8.9326145]
[1764603138274,1.97386784,85001.0,85000.0,8.9326145]
[1764603138485,2.32120665,85001.0,85000.0,8.9326145]
[1764603138990,2.38372964,85001.0,85000.0,8.9326145]
[1764603139155,2.38372964,85001.0,85000.0,8.9366145]
[1764603139983,2.38372964,85001.0,85000.0,8.9326145]
[1764603140190,2.38372964,85001.0,85000.0,8.9356145]
[1764603140391,2.38372964,85001.0,85000.0,8.9117685]
[1764603140799,2.2364742,85001.0,85000.0,6.0409685]
[1764603141006,2.05767465,85001.0,85000.0,6.0409685]
[1764603141255,2.0692448,85001.0,85000.0,0.41445836]
[1764603141422,2.29783371,84994.0,84993.0,0.00026111]
[1764603141640,2.24687347,84961.0,84960.0,0.0002]
[1764603141842,2.25519347,84961.0,84960.0,0.0002]
[1764603142496,2.31771646,84961.0,84960.0,0.0002]
[1764603143130,0.68942646,84961.0,84960.0,0.0002]
[1764603143368,0.01177066,84957.0,84888.0,0.01228022]
[1764603143554,0.01999998,84910.0,84888.0,0.0005]
[1764603143752,2.33447135,84900.0,84888.0,0.0005]
[1764603143951,0.33447135,84900.0,84888.0,0.0005]
[1764603144105,2.39149135,84900.0,84888.0,0.0005]
[1764603144305,2.38002,84900.0,84888.0,0.0005]
[1764603144895,2.39149135,84900.0,84888.0,0.0005]
[1764603145518,2.45501434,84900.0,84899.0,0.00725575]
[1764603145935,2.41541295,84900.0,84899.0,0.00725575]
[1764603146139,2.39249135,84900.0,84899.0,0.00725575]
[1764603146341,2.39149135,84900.0,84899.0,0.00025575]
[1764603146547,2.45401434,84900.0,84899.0,0.00025575]
[1764603146756,2.45401434,84900.0,84865.0,4e-05]
[1764603146757,0.01999998,84850.0,84801.0,0.001]
[1764603146959,0.323,84834.0,84828.0,0.07390678]
[1764603147168,2.0,84830.0,84828.0,0.03350549]
[1764603147372,0.323,84829.0,84828.0,0.02850549]
[1764603147548,0.323,84829.0,84801.0,0.001]
[1764603147549,0.323,84811.0,84801.0,0.001]
[1764603147752,0.01999998,84820.0,84804.0,0.09606]
[1764603147954,0.01999998,84820.0,84810.0,0.00603219]
[1764603148212,0.01999998,84820.0,84810.0,4.626e-05]
[1764603148412,0.00999999,84830.0,84816.0,0.01179022]
[1764603148612,0.01999998,84840.0,84837.0,0.0117873]
[1764603148813,0.00999999,84850.0,84839.0,0.04987]
[1764603149014,0.01999998,84850.0,84840.0,0.60782371]
[1764603149188,0.01999998,84850.0,84839.0,0.04987]
[1764603149496,0.01999998,84860.0,84841.0,0.01178675]
[1764603149694,0.01999998,84860.0,84850.0,0.60782371]
[1764603149897,0.00999999,84850.0,84840.0,0.09366]
[1764603150226,0.01999998,84860.0,84847.0,0.00764]
[1764603150655,0.24743773,84870.0,84857.0,0.01178453]
[1764603150656,0.00999999,84870.0,84857.0,0.01178453]
[1764603150903,0.01999998,84870.0,84850.0,0.60782371]
[1764603151090,0.00999999,84850.0,84837.0,0.09366]
[1764603151289,0.01999998,84860.0,84848.0,0.00764]
[1764603151421,0.01999998,84870.0,84855.0,0.0117848]
[1764603151624,0.01999998,84880.0,84869.0,0.04987]
[1764603151823,0.01999998,84880.0,84861.0,0.01178397]
[1764603151824,0.01999998,84880.0,84859.0,0.14353]
[1764603152079,0.01999998,84870.0,84859.0,0.04987]
[1764603153301,0.00999999,84870.0,84860.0,0.60782371]
[1764603153506,0.00999999,84870.0,84861.0,0.01178397]
[1764603153732,0.00999999,84870.0,84862.0,0.11522596]
[1764603153957,0.01999998,84870.0,84859.0,0.04987]
[1764603154117,0.01999998,84870.0,84863.0,0.00764]
[1764603154524,0.00999999,84870.0,84865.0,0.01178342]
[1764603154733,0.00999999,84870.0,84866.0,0.00764]
[1764603155320,0.01224595,84910.0,84895.0,0.01177925]
[1764603155506,0.01224595,84930.0,84915.0,0.04987]
[1764603155845,0.01344386,84930.0,84915.0,0.04987]
[1764603156047,0.01344386,84930.0,84915.0,0.06164648]
[1764603156245,0.01224595,84930.0,84927.0,0.01177481]
[1764603156447,0.00224596,84940.0,84931.0,0.01177426]
[1764603156706,0.00224596,84950.0,84937.0,0.01177343]
[1764603156884,0.00999999,84930.0,84924.0,0.01177523]
[1764603157104,0.00224596,84940.0,84934.0,0.01177384]
[1764603157445,0.09999824,84954.0,84934.0,0.01177384]
[1764603157446,2.0,84949.0,84937.0,0.01177343]
[1764603157665,0.01224595,84950.0,84947.0,0.01177204]
[1764603157795,0.00224596,84960.0,84950.0,0.01177163]
[1764603157994,0.00224596,84970.0,84955.0,0.01177093]
[1764603158266,0.01224595,84970.0,84955.0,0.24718949]
[1764603158557,0.10224596,85000.0,84987.0,0.0117665]
[1764603158820,0.1,85000.0,84995.0,0.01176539]
[1764603159296,0.1,85000.0,84995.0,0.10542539]
[1764603159478,0.1,85000.0,84998.0,0.23529832]
[1764603159777,0.1,85000.0,84943.0,0.09366]
[1764603159778,0.01224595,84960.0,84943.0,0.09366]
[1764603159979,0.00999999,84950.0,84932.0,0.01177412]
[1764603160349,0.00999999,84940.0,84933.0,0.00764]
[1764603160552,0.00999999,84940.0,84924.0,0.04987]
[1764603160553,0.00999999,84930.0,84924.0,0.04987]
[1764603160758,0.00999999,84930.0,84925.0,0.09999824]
[1764603160959,0.00224596,84950.0,84926.0,0.01575082]
[1764603161113,0.01224595,84950.0,84934.0,0.01177384]
[1764603161335,0.01224595,84950.0,84929.0,0.01177454]
[1764603161336,0.00999999,84940.0,84929.0,0.01148004]
[1764603161528,0.00999999,84940.0,84924.0,0.06164523]
[1764603161529,0.01177329,84938.0,84924.0,0.04987]
[1764603161731,0.00999999,84930.0,84915.0,0.14353]
[1764603161900,0.01224595,84930.0,84916.0,0.00764]
[1764603162316,5.01224595,84930.0,84916.0,0.00764]
[1764603162542,5.0,84930.0,84929.0,0.23549082]
[1764603162780,2.92456845,84930.0,84929.0,0.23560846]
[1764603163096,2.92456845,84930.0,84929.0,0.24324846]
[1764603163491,2.92456845,84930.0,84929.0,0.2547285]
[1764603164997,2.92456845,84930.0,84929.0,0.2470885]
[1764603165209,2.92456845,84930.0,84929.0,0.2547285]
[1764603165414,2.92456845,84930.0,84929.0,0.256819]
[1764603166748,2.92456845,84930.0,84929.0,0.00220814]
[1764603166958,2.92456845,84930.0,84929.0,0.00984814]
[1764603167176,2.92456845,84930.0,84929.0,0.24533896]
[1764603167384,2.92456845,84930.0,84929.0,0.256819]
[1764603167721,2.37107329,84930.0,84929.0,0.30786195]
[1764603167921,2.14032294,84930.0,84929.0,0.31934199]
[1764603168224,1.8908806,84930.0,84929.0,0.31934199]
[1764603168658,0.91411856,84930.0,84929.0,0.64234199]
[1764603168864,0.84588415,84930.0,84929.0,0.64234199]
[1764603169063,0.39561131,84930.0,84929.0,0.64234199]
[1764603169267,0.3333573,84930.0,84929.0,1.03470199]
[1764603169481,0.11212416,84930.0,84929.0,1.04234199]
[1764603169683,0.04740806,84930.0,84929.0,1.04234199]
[1764603169880,0.01224595,84990.0,84979.0,0.01176761]
[1764603170128,0.01224595,84990.0,84976.0,0.01912004]
[1764603170245,0.00224596,84990.0,84981.0,0.01176733]
[1764603170450,0.10224596,85000.0,84991.0,0.24708321]
[1764603170653,0.10224596,85000.0,84985.0,0.01202792]
[1764603170654,0.323,84999.0,84990.0,0.00764]
[1764603170850,0.323,84999.0,84994.0,0.01176553]
[1764603171083,0.01176636,84988.0,84956.0,0.01177079]
[1764603171352,0.00224596,84970.0,84953.0,0.00764]
[1764603171556,0.01224595,84970.0,84962.0,0.09999824]
[1764603171760,0.01224595,84970.0,84959.0,0.24717706]
[1764603171968,0.01224595,84970.0,84961.0,0.0117701]
[1764603172174,0.00224596,84980.0,84970.0,0.01176885]
[1764603172374,0.01224595,84980.0,84969.0,0.01148004]
[1764603172550,0.01263751,84980.0,84969.0,0.01148004]
[1764603173189,0.01039155,84980.0,84974.0,0.0117683]
[1764603173389,0.01039155,84980.0,84952.0,0.35313904]
[1764603173390,0.01039155,84980.0,84970.0,0.00764]
[1764603173520,0.01039155,84980.0,84971.0,0.00764]
[1764603173721,0.00039156,84980.0,84977.0,0.24712431]
[1764603173921,0.01039155,84980.0,84970.0,0.01176885]
[1764603174155,0.01039155,84980.0,84968.0,0.24715179]
[1764603174314,0.01039155,84980.0,84971.0,0.00764]
[1764603174520,0.01263751,84980.0,84970.0,0.01176885]
[1764603174739,0.01263751,84980.0,84972.0,0.01176858]
[1764603174943,0.01263751,84980.0,84970.0,0.24714595]
[1764603175147,0.01263751,84980.0,84969.0,0.2547872]
[1764603175351,0.01263751,84980.0,84971.0,0.01176872]
[1764603175551,0.01263751,84980.0,84972.0,0.01176858]
[1764603175777,0.01224595,84970.0,84955.0,0.01177093]
[1764603176124,0.01224595,84970.0,84938.0,0.00026]
[1764603176125,0.00999999,84960.0,84953.0,0.01177121]
[1764603176333,0.00999999,84960.0,84950.0,0.01148004]
[1764603176509,0.00999999,84960.0,84943.0,0.11177084]
[1764603176510,0.01224595,84960.0,84947.0,0.00764]
[1764603176938,0.00999999,84950.0,84936.0,0.01148004]
[1764603177145,0.00999999,84950.0,84900.0,0.4]
[1764603177146,0.01401897,84940.0,84917.0,0.33552165]
[1764603177350,0.01224595,84940.0,84922.0,0.01177551]
[1764603177554,0.01224595,84940.0,84930.0,0.0117744]
[1764603177779,0.01224595,84940.0,84932.0,0.01177412]
[1764603177970,0.01224595,84940.0,84933.0,0.01177398]
[1764603178189,0.00263703,84940.0,84934.0,0.01177384]
[1764603178322,0.00263703,84940.0,84937.0,0.01177343]
[1764603178549,0.00263703,84940.0,84938.0,0.23546443]
[1764603178751,0.00039107,84940.0,84938.0,0.23546443]
[1764603178950,0.00039107,84940.0,84927.0,0.2354953]
[1764603178951,0.01039106,84940.0,84927.0,0.2354953]
[1764603179152,0.01177329,84938.0,84921.0,0.01177565]
[1764603179375,0.01263702,84940.0,84927.0,0.23549636]
[1764603179555,0.00263703,84940.0,84937.0,0.0015678]
[1764603179731,0.00263703,84940.0,84931.0,0.01177426]
[1764603179938,0.01224595,84930.0,84924.0,0.01177523]
[1764603180250,0.01177606,84918.0,84900.0,0.09999824]
[1764603180451,0.01224595,84910.0,84903.0,0.09999824]
[1764603180648,0.00999999,84910.0,84907.0,0.01177759]
[1764603180847,0.01224595,84920.0,84914.0,0.23553074]
[1764603181056,0.01224595,84920.0,84906.0,0.01148004]
[1764603181057,0.01224595,84930.0,84918.0,0.01177606]
[1764603181263,0.00224596,84930.0,84921.0,0.01177565]
[1764603181463,0.00224596,84930.0,84917.0,0.0117762]
[1764603181464,0.01224595,84930.0,84917.0,0.0117762]
[1764603181690,0.01263702,84930.0,84923.0,0.2472819]
[1764603181883,0.00263703,84930.0,84928.0,0.23549218]
[1764603182084,0.00039107,84930.0,84928.0,0.23549218]
[1764603182298,0.00039107,84930.0,84915.0,0.01177648]
[1764603182579,0.00999999,84910.0,84896.0,0.01177911]
[1764603182779,0.01224595,84900.0,84894.0,0.23558712]
[1764603182891,0.01224595,84910.0,84899.0,0.0117787]
[1764603183097,0.01224595,84920.0,84910.0,0.01177717]
[1764603183311,0.01224595,84920.0,84913.0,0.01177675]
[1764603183554,0.01224595,84920.0,84910.0,0.01177717]
[1764603183555,0.01224595,84920.0,84910.0,0.24731949]
[1764603183759,0.01224595,84920.0,84910.0,0.01177717]
[1764603183980,0.01263702,84920.0,84911.0,0.01177703]
[1764603184187,0.00263703,84920.0,84917.0,0.0117762]
[1764603184397,0.00263703,84920.0,84912.0,0.01177689]
[1764603184608,0.01263702,84920.0,84907.0,0.01177759]
[1764603184830,0.01263702,84920.0,84912.0,0.01177689]
[1764603185039,0.00039107,84920.0,84917.0,0.0117762]
[1764603185241,0.00039107,84920.0,84896.0,0.00764]
[1764603185242,0.01224595,84910.0,84890.0,0.01177995]
[1764603185446,0.01224595,84900.0,84883.0,0.01942092]
[1764603185738,0.00224596,84900.0,84899.0,0.00281024]
[1764603186046,0.23557126,84900.0,84899.0,0.00281024]
[1764603186222,0.01178189,84876.0,84850.0,0.00026]
[1764603186444,0.00224596,84870.0,84863.0,0.01178369]
[1764603186635,0.00224596,84870.0,84856.0,0.01178467]
[1764603186839,0.00224596,84870.0,84865.0,0.01178342]
[1764603187187,0.00224596,84870.0,84863.0,0.01178369]
[1764603187398,0.00263655,84870.0,84868.0,0.23565846]
[1764603187588,0.00039059,84870.0,84868.0,0.23565846]